bitfinex/quotes_SOLUSD_20240918
["timestamp","ask_amount","ask_price","bid_price","bid_amount"]
[1726674672665,7.8156,127.95,127.92,0.37647]
[1726674673953,19.5338,127.99,127.89,50.0]
[1726674674155,7.8173,127.92,127.87,7.8203]
[1726674674332,39.3302889,128.0,127.86,92.0029889]
[1726674674333,19.5367,127.97,127.86,92.0029889]
[1726674674755,19.5399,127.95,127.86,92.0029889]
[1726674675058,19.5428,127.93,127.86,72.4505889]
[1726674675359,6.7494,127.93,127.86,0.2668889]
[1726674675946,7.8184,127.91,127.86,8.0877889]
[1726674676149,7.8198,127.88,127.86,0.2668889]
[1726674676352,7.8193,127.89,127.86,0.2668889]
[1726674677052,7.8198,127.88,127.86,0.2668889]
[1726674677263,7.8204,127.87,127.86,0.2668889]
[1726674678533,7.8204,127.87,127.82,19.8252889]
[1726674678534,7.8214,127.86,127.85,0.3204228]
[1726674681458,7.8214,127.86,127.85,0.5714028]
[1726674681839,7.8214,127.86,127.85,0.4459128]
[1726674682165,7.8214,127.86,127.85,0.3204228]
[1726674682653,7.8214,127.86,127.85,0.5714028]
[1726674683562,19.5474,127.9,127.85,0.5714028]
[1726674683563,7.8206,127.87,127.85,0.5714028]
[1726674683870,7.8206,127.87,127.86,0.25098]
[1726674684447,7.82,127.88,127.86,24.027864]
[1726674684647,7.8194,127.89,127.87,0.12549]
[1726674685174,7.8187,127.9,127.87,0.12549]
[1726674685745,7.818,127.91,127.87,7.94589]
[1726674685946,26.2923,127.93,127.88,0.25098]
[1726674686870,7.8202,127.88,127.86,0.37647]
[1726674687077,7.8202,127.88,127.86,24.153354]
[1726674688675,7.8204,127.87,127.86,24.153354]
[1726674689475,7.82,127.88,127.86,24.153354]
[1726674690540,7.8194,127.89,127.86,24.153354]
[1726674690763,7.8187,127.9,127.86,31.974354]
[1726674691364,7.8192,127.89,127.86,24.153354]
[1726674691881,10.66400334,127.95,127.9,0.12549]
[1726674692173,7.8179,127.91,127.9,0.12549]
[1726674692478,19.5391,127.95,127.9,0.12549]
[1726674692653,19.5391,127.95,127.91,0.25098]
[1726674692857,7.8171,127.93,127.91,0.25098]
[1726674694354,7.8162,127.94,127.91,0.25098]
[1726674694772,7.817,127.93,127.91,0.25098]
[1726674695084,34.984,127.98,127.91,0.25098]
[1726674695085,7.8173,127.92,127.91,0.37647]
[1726674695574,19.538,127.96,127.91,0.37647]
[1726674695752,19.538,127.96,127.92,0.12549]
[1726674697180,19.538,127.96,127.91,24.027864]
[1726674697181,7.8173,127.93,127.91,24.027864]
[1726674697381,19.538,127.96,127.91,0.25098]
[1726674697578,7.8173,127.92,127.91,0.37647]
[1726674698374,7.8181,127.91,127.89,23.970826]
[1726674698581,7.8181,127.91,127.9,0.25098]
[1726674699084,7.8181,127.91,127.9,0.37647]
[1726674699265,7.8181,127.91,127.89,0.068452]
[1726674699266,7.8186,127.9,127.89,0.444922]
[1726674701670,7.8182,127.91,127.9,0.12549]
[1726674701980,19.5406,127.94,127.89,0.444922]
[1726674701981,7.8186,127.9,127.89,0.068452]
[1726674710485,7.821,127.86,127.85,0.2519708]
[1726674711695,7.8206,127.87,127.85,0.3774608]
[1726674711990,49.68754064,127.94,127.86,0.12549]
[1726674711991,7.82,127.88,127.86,0.12549]
[1726674712397,7.82,127.88,127.86,0.37647]
[1726674713296,7.8204,127.87,127.86,0.37647]
[1726674713682,7.8204,127.87,127.85,0.2519708]
[1726674713883,7.821,127.86,127.85,0.2519708]
[1726674714305,19.5468,127.9,127.85,0.2519708]
[1726674714993,19.5433,127.93,127.85,0.2519708]
[1726674715318,19.5433,127.93,127.88,0.37647]
[1726674717178,19.5433,127.93,127.88,0.12549]
[1726674717384,19.5454,127.91,127.86,0.12549]
[1726674717716,7.8204,127.87,127.85,0.2519708]
[1726674718003,7.821,127.86,127.85,0.2519708]
[1726674718399,7.8206,127.87,127.85,0.2519708]
[1726674718900,7.8206,127.87,127.86,0.12549]
[1726674719103,19.5449,127.92,127.87,0.12549]
[1726674719104,7.8199,127.88,127.87,0.12549]
[1726674719284,19.5449,127.92,127.87,0.12549]
[1726674719285,7.8193,127.89,127.87,0.25098]
[1726674719614,47.24646809,127.94,127.87,0.25098]
[1726674719615,20.0,127.94,127.87,0.25098]
[1726674720196,19.542,127.93,127.87,0.25098]
[1726674720391,7.8183,127.91,127.88,0.12549]
[1726674720698,7.8183,127.91,127.89,0.25098]
[1726674721215,10.83068566,127.95,127.9,0.12549]
[1726674721508,7.8164,127.94,127.92,0.12549]
[1726674721683,7.8157,127.95,127.92,0.12549]
[1726674722079,7.8157,127.95,127.93,0.25098]
[1726674722402,7.8167,127.93,127.92,0.12549]
[1726674722708,7.8175,127.92,127.9,24.027864]
[1726674722911,7.8175,127.92,127.91,0.12549]
[1726674723098,7.8179,127.91,127.89,0.25098]
[1726674723307,7.8186,127.9,127.89,0.37647]
[1726674723607,19.5395,127.95,127.89,0.37647]
[1726674723608,7.8181,127.91,127.89,23.902374]
[1726674724093,7.8175,127.92,127.89,23.902374]
[1726674724490,7.8163,127.94,127.9,7.8185]
[1726674724723,7.8163,127.94,127.91,24.153354]
[1726674725408,7.8157,127.95,127.91,31.971254]
[1726674725784,19.5355,127.98,127.93,0.12549]
[1726674725785,7.8149,127.96,127.93,0.12549]
[1726674725998,7.8149,127.96,127.93,24.153354]
[1726674726594,7.8149,127.96,127.94,1.56298762]
[1726674726794,7.8149,127.96,127.93,24.153354]
[1726674727308,7.8155,127.95,127.93,24.153354]
[1726674727712,7.8155,127.95,127.93,0.37647]
[1726674732618,7.8151,127.96,127.93,1.93954962]
[1726674733508,0.2519708,127.99,127.95,31.968654]
[1726674733509,8.0650708,127.99,127.95,31.968654]
[1726674733709,7.8143,127.97,127.94,42.1811]
[1726674733912,0.2519708,127.99,127.94,42.1811]
[1726674733913,7.815,127.96,127.95,0.37647]
[1726674734216,7.815,127.96,127.95,0.25098]
[1726674734421,19.7846708,127.99,127.92,24.027864]
[1726674734613,7.8165,127.94,127.93,0.12549]
[1726674735025,7.8157,127.95,127.93,0.12549]
[1726674735419,7.8151,127.96,127.93,0.12549]
[1726674736133,7.8155,127.95,127.93,0.12549]
[1726674736834,7.8145,127.97,127.93,7.94209]
[1726674737034,7.8145,127.97,127.94,24.027864]
[1726674737216,7.8145,127.97,127.95,0.12549]
[1726674738719,7.8149,127.96,127.95,0.12549]
[1726674739036,7.8155,127.95,127.94,0.25098]
[1726674739412,7.8155,127.95,127.94,0.37647]
[1726674739912,7.8151,127.96,127.94,0.37647]
[1726674740217,7.8147,127.97,127.94,0.37647]
[1726674740419,7.8147,127.97,127.95,0.12549]
[1726674740727,7.8139,127.98,127.97,0.12549]
[1726674740907,0.2519708,127.99,127.97,0.12549]
[1726674741112,8.0655708,127.99,127.97,0.12549]
[1726674741630,0.2519708,127.99,127.97,0.12549]
[1726674743243,8.0650708,127.99,127.97,0.12549]
[1726674744827,0.2519708,127.99,127.97,0.12549]
[1726674745226,0.2519708,127.99,127.98,24.027864]
[1726674745548,0.2519708,127.99,127.98,24.153354]
[1726674746042,8.0650708,127.99,127.98,0.25098]
[1726674746243,8.0650708,127.99,127.97,15.5128]
[1726674746920,7.8137,127.98,127.97,15.5128]
[1726674747122,7.8137,127.98,127.97,0.37647]
[1726674747354,8.0652708,127.99,127.97,0.37647]
[1726674748544,7.8137,127.98,127.97,0.37647]
[1726674749643,8.0652708,127.99,127.97,0.37647]
[1726674749829,0.2519708,127.99,127.98,0.37647]
[1726674750647,8.0650708,127.99,127.98,0.37647]
[1726674751229,8.0650708,127.99,127.98,0.25098]
[1726674751433,7.8137,127.98,127.97,0.37647]
[1726674752551,8.0652708,127.99,127.97,0.37647]
[1726674753834,8.0652708,127.99,127.97,1.93908314]
[1726674754022,8.0652708,127.99,127.97,0.37647]
[1726674754228,7.8143,127.97,127.96,0.37647]
[1726674754451,7.8143,127.97,127.96,0.25098]
[1726674754629,7.8143,127.97,127.96,0.12549]
[1726674754953,7.8143,127.97,127.95,0.12549]
[1726674755831,7.8143,127.97,127.96,0.12549]
[1726674756034,8.0651708,127.99,127.96,0.12549]
[1726674756833,7.8138,127.98,127.96,0.12549]
[1726674758432,7.8143,127.97,127.96,0.12549]
[1726674760145,7.8149,127.96,127.95,24.027864]
[1726674760346,7.8149,127.96,127.95,24.153354]
[1726674760666,7.8145,127.97,127.96,0.12549]
[1726674760833,7.8139,127.98,127.96,1.68825218]
[1726674761331,0.2519708,127.99,127.96,0.12549]
[1726674761536,8.0654708,127.99,127.97,0.25098]
[1726674761747,0.2519708,127.99,127.98,0.25098]
[1726674762060,0.2519708,127.99,127.98,24.153354]
[1726674764645,8.0650708,127.99,127.98,0.37647]
[1726674764843,0.2519708,127.99,127.98,0.37647]
[1726674766386,0.2519708,127.99,127.97,23.776884]
[1726674766678,8.0654708,127.99,127.96,24.027864]
[1726674766971,8.0654708,127.99,127.97,0.25098]
[1726674767169,0.2519708,127.99,127.97,0.25098]
[1726674767477,0.2519708,127.99,127.98,0.12549]
[1726674770863,0.2519708,127.99,127.97,24.027864]
[1726674772374,0.2519708,127.99,127.98,0.25098]
[1726674772585,0.2519708,127.99,127.98,24.153354]
[1726674778282,0.2519708,127.99,127.98,0.37647]
[1726674780573,0.2519708,127.99,127.98,24.153354]
[1726674780787,0.2519708,127.99,127.98,31.967054]
[1726674781294,0.2519708,127.99,127.98,24.153354]
[1726674784470,7.8139,127.98,127.94,35.7887]
[1726674784883,0.2519708,127.99,127.91,56.2926]
[1726674785193,0.2519708,127.99,127.91,33.6539]
[1726674785194,7.8156,127.95,127.91,33.6539]
[1726674785692,7.8151,127.96,127.92,7.817]
[1726674787097,7.8144,127.97,127.93,31.969954]
[1726674788792,7.8138,127.98,127.94,7.8158]
[1726674789098,7.8138,127.98,127.95,24.153354]
[1726674789507,8.0651708,127.99,127.95,31.968754]
[1726674789702,8.0650708,127.99,127.97,24.153354]
[1726674790207,8.0650708,127.99,127.97,0.37647]
[1726674791283,7.8137,127.98,127.97,0.37647]
[1726674791508,7.8143,127.97,127.94,0.12549]
[1726674791675,7.8143,127.97,127.94,24.153354]
[1726674792297,8.0654708,127.99,127.94,31.969054]
[1726674792504,0.2519708,127.99,127.94,43.693554]
[1726674792681,8.0650708,127.99,127.95,7.8153]
[1726674792886,8.0650708,127.99,127.96,24.153354]
[1726674794605,8.0650708,127.99,127.94,0.12549]
[1726674794606,0.2519708,127.99,127.94,0.12549]
[1726674794805,7.8151,127.96,127.92,7.8169]
[1726674795002,7.8156,127.95,127.91,27.3614]
[1726674795923,7.8156,127.95,127.92,7.8173]
[1726674796210,7.8156,127.95,127.94,0.37647]
[1726674796386,7.8151,127.96,127.94,0.37647]
[1726674796706,7.8155,127.95,127.94,0.25098]
[1726674798703,7.8155,127.95,127.92,23.902374]
[1726674798908,7.8155,127.95,127.93,0.25098]
[1726674799300,7.8161,127.94,127.92,23.902374]
[1726674799483,7.8157,127.95,127.92,23.902374]
[1726674800580,19.5344,127.98,127.93,0.25098]
[1726674800912,7.815,127.96,127.93,0.25098]
[1726674801908,7.815,127.96,127.94,0.12549]
[1726674803204,7.8157,127.95,127.93,0.25098]
[1726674805596,7.8161,127.94,127.93,0.12549]
[1726674806515,7.8161,127.94,127.92,23.902374]
[1726674807404,7.8164,127.94,127.92,0.25098]
[1726674808316,7.8164,127.94,127.92,1.81421697]
[1726674810004,6.8826708,127.99,127.93,0.37647]
[1726674810005,7.8157,127.95,127.93,0.37647]
[1726674810312,7.8151,127.96,127.93,25.71640527]
[1726674811321,7.8151,127.96,127.93,24.153354]
[1726674812125,7.8156,127.95,127.93,24.153354]
[1726674812697,7.8156,127.95,127.93,0.37647]
[1726674815917,7.8153,127.96,127.95,0.25098]
[1726674817020,7.8145,127.97,127.95,0.25098]
[1726674820214,7.8139,127.98,127.95,0.25098]
[1726674820534,7.8139,127.98,127.96,0.12549]
[1726674825931,0.2519708,127.99,127.96,0.12549]
[1726674825932,7.8143,127.97,127.96,0.12549]
[1726674826712,27.3501,127.97,127.96,0.12549]
[1726674827022,27.3501,127.97,127.9,42.8037]
[1726674827023,7.8167,127.93,127.9,50.6222]
[1726674827204,19.5358,127.97,127.9,50.6222]
[1726674827205,7.8163,127.94,127.91,0.12549]
[1726674827931,7.8163,127.94,127.92,0.12549]
[1726674828318,7.8156,127.95,127.93,0.25098]
[1726674829938,7.8168,127.93,127.91,23.776884]
[1726674830257,19.5358,127.97,127.9,42.8037]
[1726674830258,7.8174,127.92,127.9,16.9533]
[1726674831530,7.8174,127.92,127.88,7.8197]
[1726674831834,7.8182,127.91,127.88,0.12549]
[1726674832032,7.8175,127.92,127.88,7.94509]
[1726674832833,7.8175,127.92,127.89,24.027864]
[1726674833525,7.8175,127.92,127.9,0.12549]
[1726674834343,7.8169,127.93,127.9,0.12549]
[1726674834632,41.87427897,127.97,127.92,0.12549]
[1726674834633,7.8163,127.94,127.92,0.12549]
[1726674834825,7.8155,127.95,127.93,0.12549]
[1726674835225,7.8161,127.94,127.93,0.12549]
[1726674840851,7.8157,127.95,127.93,0.12549]
[1726674843233,7.8152,127.96,127.94,0.25098]
[1726674843661,7.8146,127.97,127.95,0.12549]
[1726674844549,7.8146,127.97,127.96,0.12549]
[1726674844939,7.8149,127.96,127.94,0.12549]
[1726674845144,7.8149,127.96,127.94,24.153354]
[1726674851365,7.8155,127.95,127.94,0.12549]
[1726674851550,20.2519708,127.99,127.93,0.12549]
[1726674851754,7.8158,127.95,127.93,0.12549]
[1726674851960,7.8158,127.95,127.92,0.12549]
[1726674852566,7.8162,127.94,127.91,7.94329]
[1726674853165,7.8158,127.95,127.92,23.776884]
[1726674853357,7.8158,127.95,127.93,0.37647]
[1726674855573,7.8197,127.89,127.84,7.8217]
[1726674855754,7.8197,127.89,127.84,27.3773]
[1726674855951,7.8186,127.9,127.85,11.52536492]
[1726674856170,20.0,127.94,127.86,19.5519]
[1726674856171,7.8192,127.89,127.86,19.5519]
[1726674856369,7.8207,127.87,127.85,0.2519708]
[1726674856571,19.5441,127.92,127.85,0.2519708]
[1726674857376,7.821,127.87,127.85,0.2519708]
[1726674857544,7.8199,127.88,127.85,0.2519708]
[1726674857967,7.8194,127.89,127.85,0.2519708]
[1726674858151,7.8194,127.89,127.86,0.37647]
[1726674858478,7.8204,127.87,127.86,24.153354]
[1726674858647,19.5441,127.92,127.86,24.153354]
[1726674858854,7.8204,127.87,127.85,0.2519708]
[1726674860085,20.0,127.92,127.86,0.25098]
[1726674860454,7.8199,127.88,127.86,0.25098]
[1726674862878,7.8204,127.87,127.86,0.25098]
[1726674863857,7.8204,127.87,127.85,0.2519708]
[1726674864288,7.8204,127.87,127.86,0.12549]
[1726674864473,7.8204,127.87,127.86,0.25098]
[1726674865478,7.82,127.88,127.86,0.25098]
[1726674866872,7.8194,127.89,127.86,0.25098]
[1726674867073,7.8198,127.88,127.86,0.25098]
[1726674867477,20.0,127.93,127.86,24.027864]
[1726674869262,7.8204,127.87,127.86,0.25098]
[1726674870685,7.8204,127.87,127.86,0.12549]
[1726674873879,19.5465,127.9,127.85,24.0288548]
[1726674874082,7.821,127.86,127.85,24.0288548]
[1726674874285,7.821,127.86,127.85,24.4053248]
[1726674874671,19.5465,127.9,127.85,24.4053248]
[1726674875179,7.8196,127.89,127.86,24.153354]
[1726674876267,7.8198,127.88,127.86,24.153354]
[1726674876596,39.5431,127.93,127.86,24.153354]
[1726674876597,7.8204,127.87,127.86,24.153354]
[1726674877192,7.82,127.88,127.86,24.153354]
[1726674881300,7.8204,127.87,127.86,24.153354]
[1726674882410,7.82,127.88,127.86,24.153354]
[1726674884211,7.8204,127.87,127.86,0.25098]
[1726674884404,7.8204,127.87,127.86,0.12549]
[1726674886488,7.821,127.86,127.85,0.2519708]
[1726674899507,7.8205,127.87,127.85,0.2519708]
[1726674899812,7.821,127.86,127.85,0.2519708]
[1726674907019,22.91058223,127.93,127.85,0.2519708]
[1726674907020,41.3864,127.93,127.86,0.12549]
[1726674907236,7.8192,127.89,127.86,0.12549]
[1726674907396,15.2862,127.93,127.88,0.12549]
[1726674907713,7.8184,127.91,127.88,0.12549]
[1726674908017,7.8175,127.92,127.89,0.25098]
[1726674908226,19.27697605,127.95,127.9,0.12549]
[1726674908395,16.5413,127.96,127.9,0.12549]
[1726674908601,7.8168,127.93,127.9,0.12549]
[1726674908999,16.5413,127.96,127.89,0.25098]
[1726674909196,7.8179,127.91,127.89,0.25098]
[1726674910011,43.776884,127.94,127.86,23.902374]
[1726674910212,7.8203,127.88,127.86,0.25098]
[1726674911418,19.5425,127.93,127.87,0.12549]
[1726674911624,19.5425,127.93,127.88,0.12549]
[1726674912297,7.8186,127.9,127.88,0.12549]
[1726674913128,19.5425,127.93,127.86,24.027864]
[1726674913919,14.38452329,127.96,127.86,24.027864]
[1726674914117,43.776884,127.95,127.87,0.12549]
[1726674914823,20.0,127.95,127.87,0.12549]
[1726674916317,7.8188,127.9,127.87,0.12549]
[1726674917024,7.8192,127.89,127.86,24.027864]
[1726674917207,7.82,127.88,127.86,0.25098]
[1726674917918,7.8194,127.89,127.86,0.25098]
[1726674919211,7.8194,127.89,127.87,0.12549]
[1726674920031,20.0,127.92,127.87,0.12549]
[1726674920938,19.5425,127.93,127.88,0.25098]
[1726674921226,7.8183,127.91,127.88,0.25098]
[1726674921899,7.8187,127.9,127.88,0.25098]
[1726674922627,7.8182,127.91,127.88,0.25098]
[1726674923826,7.8175,127.92,127.89,0.12549]
[1726674924125,33.92332329,127.96,127.9,16.61788]
[1726674924126,7.817,127.93,127.9,16.61788]
[1726674925622,7.8175,127.92,127.9,16.61788]
[1726674926220,7.8179,127.91,127.9,16.3669]
[1726674926809,7.8186,127.9,127.89,6.82119]
[1726674928436,7.8186,127.9,127.89,6.94668]
[1726674928934,7.8181,127.91,127.89,6.94668]
[1726674930010,7.8175,127.92,127.9,0.25098]
[1726674930320,19.5404,127.94,127.91,15.155]
[1726674930507,8.15242684,127.98,127.97,0.37647]
[1726674930704,0.2519708,127.99,127.97,0.37647]
[1726674930705,0.2519708,127.99,127.97,0.25098]
[1726674931332,0.2519708,127.99,127.97,14.70868]
[1726674931628,0.2519708,127.99,127.98,9.37632509]
[1726674931831,0.2519708,127.99,127.98,33.52967909]
[1726674932040,0.2519708,127.99,127.98,44.80307321]
[1726674932836,0.2519708,127.99,127.98,33.52967909]
[1726674933330,0.2519708,127.99,127.98,44.80307321]
[1726674936518,0.2519708,127.99,127.98,44.80284805]
[1726674937420,0.2519708,127.99,127.98,33.52945393]
[1726674937614,0.2519708,127.99,127.98,31.967054]
[1726674937821,0.2519708,127.99,127.98,8.19017]
[1726674938238,0.2519708,127.99,127.98,0.37647]
[1726674939147,0.2519708,127.99,127.98,8.19017]
[1726674941838,0.2519708,127.99,127.98,0.37647]
[1726674944037,0.2519708,127.99,127.98,9.75269484]
[1726674946623,0.2519708,127.99,127.98,8.19017]
[1726674950940,0.2519708,127.99,127.98,51.501354]
[1726674951252,0.2519708,127.99,127.98,62.77474812]
[1726674951632,0.2519708,127.99,127.98,64.33714546]
[1726674951931,0.2519708,127.99,127.98,62.77474812]
[1726674956749,0.2519708,127.99,127.98,64.33712976]
[1726674956947,0.2519708,127.99,127.98,62.77474812]
[1726674957741,0.2519708,127.99,127.98,82.77474812]
[1726674961142,0.2519708,127.99,127.98,84.33680301]
[1726674961636,0.2519708,127.99,127.98,82.77474812]
[1726674961838,0.2519708,127.99,127.98,84.33679828]
[1726674962965,0.2519708,127.99,127.98,82.77474812]
[1726674965353,0.2519708,127.99,127.98,47.348]
[1726674965557,0.2519708,127.99,127.98,19.5343]
[1726674966444,0.2519708,127.99,127.97,7.814]
[1726674966867,0.2519708,127.99,127.97,7.8142]
[1726674967335,0.2519708,127.99,127.97,19.08759412]
[1726674967657,0.2519708,127.99,127.98,0.37647]
[1726674968737,0.2519708,127.99,127.98,1.9389402]
[1726674968938,0.2519708,127.99,127.98,33.5295242]
[1726674969166,0.2519708,127.99,127.98,62.77474812]
[1726674969362,0.2519708,127.99,127.98,82.77474812]
[1726674972233,0.2519708,127.99,127.98,74.96104812]
[1726674972434,0.2519708,127.99,127.98,71.501354]
[1726674972639,0.2519708,127.99,127.98,0.37647]
[1726674972838,0.2519708,127.99,127.97,7.8141]
[1726674974149,0.2519708,127.99,127.98,24.153354]
[1726674975867,0.2519708,127.99,127.98,0.37647]
[1726674976065,0.2519708,127.99,127.98,24.153354]
[1726674976665,0.2519708,127.99,127.98,31.967054]
[1726674977245,0.2519708,127.99,127.98,63.24044812]
[1726674981275,0.2519708,127.99,127.98,82.77474812]
[1726674982764,0.2519708,127.99,127.98,84.3368918]
[1726674982971,0.2519708,127.99,127.98,82.77474812]
[1726674986170,0.2519708,127.99,127.98,84.33688547]
[1726674986476,0.2519708,127.99,127.98,101.80778547]
[1726674994764,0.2519708,128.02,128.01,132.76824812]
[1726674994958,0.2519708,128.02,128.01,134.32990735]
[1726674995475,0.2519708,128.06,128.01,134.32990735]
[1726674995476,0.2519708,128.06,128.05,51.486354]
[1726674995653,0.2519708,128.06,128.05,64.32111003]
[1726674995857,0.2519708,128.06,128.05,64.32111798]
[1726674996463,0.2519708,128.06,128.05,112.75974812]
[1726674998084,0.2519708,128.06,128.05,132.75974812]
[1726674998756,0.2519708,128.06,128.05,82.75974812]
[1726675006389,0.2519708,128.06,128.05,47.333]
[1726675007663,0.2519708,128.06,128.05,71.486354]
[1726675007863,0.2519708,128.06,128.05,0.12549]
[1726675009075,0.2519708,128.06,128.05,24.153354]
[1726675010092,0.2519708,128.06,128.05,0.37647]
[1726675011377,8.0607708,128.06,128.05,0.25098]
[1726675012484,8.0607708,128.06,128.05,0.12549]
[1726675012988,0.2519708,128.06,128.05,0.25098]
[1726675013388,8.0607708,128.06,128.05,0.12549]
[1726675015594,0.2519708,128.06,128.05,0.12549]
[1726675015891,0.2519708,128.06,128.04,0.37647]
[1726675016696,8.0607708,128.06,128.04,0.37647]
[1726675017601,7.8094,128.05,128.04,0.37647]
[1726675018395,8.0609708,128.06,128.04,0.37647]
[1726675021395,8.0609708,128.06,128.04,0.12549]
[1726675021609,0.2519708,128.06,127.99,115.5631]
[1726675021913,17.7584708,128.06,127.99,126.83649412]
[1726675022110,7.8102,128.04,128.0,7.8119]
[1726675022474,7.8102,128.04,127.99,126.83649412]
[1726675022475,7.8102,128.04,128.01,7.8118]
[1726675022700,7.8096,128.05,128.01,7.8118]
[1726675022890,7.8096,128.05,128.02,24.153354]
[1726675023082,25.5673708,128.06,128.02,8.18717]
[1726675023287,17.7584708,128.06,128.03,7.8103]
[1726675023496,25.5673708,128.06,128.02,8.18757]
[1726675025480,0.2519708,128.06,128.04,0.37647]
[1726675026203,8.0608708,128.06,128.04,0.37647]
[1726675031508,7.8094,128.05,128.04,0.37647]
[1726675031805,0.2519708,128.06,128.04,0.37647]
[1726675031806,8.0610708,128.06,128.04,0.37647]
[1726675035511,0.2519708,128.06,128.04,0.37647]
[1726675035716,0.2519708,128.06,128.05,24.153354]
[1726675039387,0.2519708,128.06,128.04,0.37647]
[1726675039908,8.0607708,128.06,128.04,0.12549]
[1726675040993,7.8106,128.04,128.0,36.3957]
[1726675041219,7.8104,128.04,128.02,0.25098]
[1726675042097,7.8096,128.05,128.02,0.25098]
[1726675043221,8.0608708,128.06,128.02,8.06218]
[1726675043429,0.2519708,128.06,128.04,0.25098]
[1726675044801,0.2519708,128.06,128.04,8.06088]
[1726675045009,0.2519708,128.06,128.05,1.81270971]
[1726675045326,0.2519708,128.06,128.05,0.25098]
[1726675048108,0.2519708,128.06,128.05,25.7150851]
[1726675048306,0.2519708,128.06,128.05,24.153354]
[1726675048516,0.2519708,128.06,128.05,25.71491237]
[1726675048819,0.2519708,128.06,128.05,24.153354]
[1726675049499,0.2519708,128.06,128.05,31.962754]
[1726675050014,0.2519708,128.06,128.05,43.23614812]
[1726675051296,0.2519708,128.06,128.05,63.23614812]
[1726675051823,0.2519708,128.06,128.05,43.23614812]
[1726675052209,0.2519708,128.06,128.05,63.23614812]
[1726675052408,0.2519708,128.06,128.05,82.75974812]
[1726675052608,0.2519708,128.06,128.05,71.486354]
[1726675052803,0.2519708,128.06,128.05,39.5236]
[1726675053105,0.2519708,128.06,128.05,47.333]
[1726675054122,0.2519708,128.06,128.05,71.486354]
[1726675054696,0.2519708,128.06,128.05,73.04791471]
[1726675054897,0.2519708,128.06,128.05,71.486354]
[1726675055119,0.2519708,128.06,128.05,82.75974812]
[1726675061533,0.2519708,128.06,128.05,71.486354]
[1726675066430,0.2519708,128.06,128.05,24.153354]
[1726675067610,0.2519708,128.06,128.02,7.8111]
[1726675068629,8.0609708,128.06,128.02,7.8111]
[1726675069005,7.81,128.04,128.0,27.3422]
[1726675069228,0.2519708,128.06,127.97,23.325]
[1726675069412,7.8113,128.02,127.98,7.8136]
[1726675069724,7.8121,128.01,127.97,54.13279412]
[1726675069921,7.8114,128.02,127.98,7.8137]
[1726675070716,7.8114,128.02,128.0,0.37647]
[1726675070916,7.8114,128.02,128.0,0.12549]
[1726675071135,7.8107,128.03,127.99,7.93849]
[1726675072016,7.8107,128.03,127.98,7.93899]
[1726675072214,7.8118,128.01,128.0,0.12549]
[1726675072543,16.2964,128.03,127.96,20.0]
[1726675073138,16.2964,128.03,127.95,20.0]
[1726675073333,26.6133,128.02,127.94,19.5391]
[1726675073636,7.8148,127.97,127.93,0.2519708]
[1726675074550,26.6133,128.02,127.93,0.2519708]
[1726675074551,7.8151,127.96,127.93,0.2519708]
[1726675076750,7.8151,127.96,127.94,0.12549]
[1726675077348,7.8144,127.97,127.94,0.25098]
[1726675078050,25.4784,127.98,127.95,0.12549]
[1726675078250,25.4784,127.98,127.95,0.25098]
[1726675078555,7.8131,127.99,127.95,27.60488]
[1726675079225,7.8131,127.99,127.96,0.25098]
[1726675079425,16.6072,128.01,127.96,0.25098]
[1726675079426,7.8125,128.0,127.97,0.25098]
[1726675080754,24.4192,128.01,127.97,8.06518]
[1726675080926,7.8125,128.0,127.97,0.25098]
[1726675082043,36.1372,128.01,127.97,0.12549]
[1726675082225,7.8137,127.98,127.97,0.12549]
[1726675083341,7.8132,127.99,127.97,0.12549]
[1726675084127,24.4191,128.01,127.98,0.25098]
[1726675084323,7.8114,128.02,127.99,23.902374]
[1726675084656,7.8108,128.03,128.0,0.25098]